{"text_format":"1","workbook":"xlsx","n_sheets":4,"sheets":["wedstrijd","Partij Uitslagen","Cum Uitslagen","score"],"not_rendered":{"charts":0,"images":0,"macros":1,"external_links":3,"defined_names":34,"comments":0,"pivot_tables":0},"unopened":[],"bounds":{"document_bytes":16777216,"sheet_cells":100000,"rows_first":2000,"rows_last":500,"rows_between":2000,"halvings":0,"cell_chars":16384,"cell_head_chars":4096},"cells_cut":0,"cells_raw":0,"read":"whole","date_system":"1900"}

{"sheet":"wedstrijd","index":0,"n_rows":28,"n_cols":41,"rows_kept":28,"cut":false,"hidden":false,"merged":[]}
["00:00:29",null,null,null,null,null,null,null,null,null,null,null,null,null,null,null,null,null,null,null,null,null,null,null,null,null,null,null,null,null,null,{"$f":"spelerA","v":"A"},{"$f":"spelerB","v":"B"},{"$f":"Z4","v":"1e Partij"},{"$f":"Y8","v":"week 1"},{"$f":"W15","v":17},{"$f":"PuntenA","v":12},{"$f":"BeurtenA","v":0},{"$f":"HoogsteReeksA","v":0},{"$f":"W22","v":0},{"$f":"GemiddeldeA","v":0}]
[null,{"$f":"Y4","v":"A"},{"$f":"Z4","v":"1e Partij"},null,{"$f":"Y6","v":"B"},{"$f":"Z6","v":"1e Partij"},null,null,{"$f":"Y4","v":"A"},{"$f":"Z4","v":"1e Partij"},null,{"$f":"Y6","v":"B"},{"$f":"Z6","v":"1e Partij"},null,null,{"$f":"Y4","v":"A"},{"$f":"Z4","v":"1e Partij"},null,{"$f":"Y6","v":"B"},{"$f":"Z6","v":"1e Partij"},null,null,null,null,null,null,null,null,null,null,null,{"$f":"spelerB","v":"B"},{"$f":"spelerA","v":"A"},{"$f":"Z6","v":"1e Partij"},{"$f":"Y8","v":"week 1"},{"$f":"X15","v":26},{"$f":"PuntenB","v":26},{"$f":"BeurtenB","v":0},{"$f":"HoogsteReeksB","v":0},{"$f":"X22","v":3},{"$f":"GemiddeldeB","v":0}]
["Beurt","Score","Totaal",null,"Score","Totaal",null,"Beurt","Score","Totaal",null,"Score","Totaal",null,"Beurt","Score","Totaal",null,"Score","Totaal",null,null,null,null,"Spelers"]
[1,null,12,null,null,26,null,26,null,{"$f":"IF(C28<>\"\",C28+I4,\"\")","v":""},null,null,{"$f":"IF(F28<>\"\",F28+L4,\"\")","v":""},null,51,null,{"$f":"IF(J28<>\"\",J28+P4,\"\")","v":""},null,null,{"$f":"IF(M28<>\"\",M28+S4,\"\")","v":""},null,null,null,null,"A","1e Partij","week 1"]
[2,null,{"$f":"IF(B5<>\"\",B5+C4,\"\")","v":""},null,null,{"$f":"IF(E5<>\"\",E5+F4,\"\")","v":""},null,27,null,{"$f":"IF(I5<>\"\",I5+J4,\"\")","v":""},null,null,{"$f":"IF(L5<>\"\",L5+M4,\"\")","v":""},null,52,null,{"$f":"IF(P5<>\"\",P5+Q4,\"\")","v":""},null,null,{"$f":"IF(S5<>\"\",S5+T4,\"\")","v":""},null,null,null,null,null,null,"week 2"]
[3,null,{"$f":"IF(B6<>\"\",B6+C5,\"\")","v":""},null,null,{"$f":"IF(E6<>\"\",E6+F5,\"\")","v":""},null,28,null,{"$f":"IF(I6<>\"\",I6+J5,\"\")","v":""},null,null,{"$f":"IF(L6<>\"\",L6+M5,\"\")","v":""},null,53,null,{"$f":"IF(P6<>\"\",P6+Q5,\"\")","v":""},null,null,{"$f":"IF(S6<>\"\",S6+T5,\"\")","v":""},null,null,null,null,"B","1e Partij","week 3"]
[4,null,{"$f":"IF(B7<>\"\",B7+C6,\"\")","v":""},null,null,{"$f":"IF(E7<>\"\",E7+F6,\"\")","v":""},null,29,null,{"$f":"IF(I7<>\"\",I7+J6,\"\")","v":""},null,null,{"$f":"IF(L7<>\"\",L7+M6,\"\")","v":""},null,54,null,{"$f":"IF(P7<>\"\",P7+Q6,\"\")","v":""},null,null,{"$f":"IF(S7<>\"\",S7+T6,\"\")","v":""},null,null,null,null,null,null,"week 4"]
[5,null,{"$f":"IF(B8<>\"\",B8+C7,\"\")","v":""},null,null,{"$f":"IF(E8<>\"\",E8+F7,\"\")","v":""},null,30,null,{"$f":"IF(I8<>\"\",I8+J7,\"\")","v":""},null,null,{"$f":"IF(L8<>\"\",L8+M7,\"\")","v":""},null,55,null,{"$f":"IF(P8<>\"\",P8+Q7,\"\")","v":""},null,null,{"$f":"IF(S8<>\"\",S8+T7,\"\")","v":""},null,null,null,null,"week 1",null,"week 5"]
[6,null,"",null,null,{"$f":"IF(E9<>\"\",E9+F8,\"\")","v":""},null,31,null,{"$f":"IF(I9<>\"\",I9+J8,\"\")","v":""},null,null,{"$f":"IF(L9<>\"\",L9+M8,\"\")","v":""},null,56,null,{"$f":"IF(P9<>\"\",P9+Q8,\"\")","v":""},null,null,{"$f":"IF(S9<>\"\",S9+T8,\"\")","v":""},null,null,null,null,null,null,"week 6"]
[7,null,"",null,null,"",null,32,null,{"$f":"IF(I10<>\"\",I10+J9,\"\")","v":""},null,null,{"$f":"IF(L10<>\"\",L10+M9,\"\")","v":""},null,57,null,{"$f":"IF(P10<>\"\",P10+Q9,\"\")","v":""},null,null,{"$f":"IF(S10<>\"\",S10+T9,\"\")","v":""},null,null,null,null,null,"1e Partij","week 7"]
[8,null,"",null,null,"",null,33,null,"",null,null,"",null,58,null,"",null,null,"",null,null,"Speler","Speler",null,"2e Partij","week 8"]
[9,null,"",null,null,"",null,34,null,"",null,null,"",null,59,null,"",null,null,"",null,null,{"$f":"Y4","v":"A"},{"$f":"Y6","v":"B"},null,"3e Partij","week 9"]
[10,null,"",null,null,"",null,35,null,"",null,null,"",null,60,null,"",null,null,"",null,null,{"$f":"Z4","v":"1e Partij"},{"$f":"Z6","v":"1e Partij"},null,"4e Partij","week 10"]
[11,null,"",null,null,"",null,36,null,"",null,null,"",null,61,null,"",null,null,"",null,null,null,null,null,"5e Partij","week 11"]
[12,null,"",null,null,"",null,37,null,"",null,null,"",null,62,null,"",null,null,"",null,"te spelen punten",{"$f":"VLOOKUP($Y$4,'Cum Uitslagen'!$B$20:$F$29,4,0)","v":17},{"$f":"VLOOKUP($Y$6, 'Cum Uitslagen'!$B$20:$F$29,4,0)","v":26},null,"6e partij","week 12"]
[13,null,"",null,null,"",null,38,null,"",null,null,"",null,63,null,"",null,null,"",null,null,null,null,null,null,"week 13"]
[14,null,"",null,null,"",null,39,null,"",null,null,"",null,64,null,"",null,null,"",null,"gemaakte punten",{"$f":"MAX(C4:C28,J4:J28,Q4:Q28)","v":12},{"$f":"MAX(F4:F28,M4:M28,T4:T28)","v":26}]
[15,null,"",null,null,"",null,40,null,"",null,null,"",null,65,null,"",null,null,"",null,null,null,null,null,"A"]
[16,null,"",null,null,"",null,41,null,"",null,null,"",null,66,null,"",null,null,"",null,"beurten",{"$f":"COUNT(B4:B28,I4:I28,P4:P28)","v":0},{"$f":"COUNT(E4:E28,L4:L28,S4:S28)","v":0},null,"B"]
[17,null,"",null,null,"",null,42,null,"",null,null,"",null,67,null,"",null,null,"",null,null,null,null,null,"C"]
[18,null,"",null,null,"",null,43,null,"",null,null,"",null,68,null,"",null,null,"",null,"hoogste reeks",{"$f":"MAX(B4:B28,I4:I28,P4:P28)","v":0},{"$f":"MAX(E4:E28,L4:L28,S4:S28)","v":0},null,"D"]
[19,null,"",null,null,"",null,44,null,"",null,null,"",null,69,null,"",null,null,"",null,"Score",{"$f":"IF(AND(W17>=W15,X17<X15),3,IF(AND(W17>=W15,X17>=X15),1,IF(W17<W15,0,\"\")))","v":0},{"$f":"IF(AND(X17>=X15,W17<W15),3,IF(AND(X17>=W15,W17>=W15),1,IF(X17<X15,0,\"\")))","v":3},null,"E"]
[20,null,"",null,null,"",null,45,null,"",null,null,"",null,70,null,"",null,null,"",null,"gemiddelde",{"$f":"IF(BeurtenA,PuntenA/BeurtenA,0)","v":0},{"$f":"IF(BeurtenB,PuntenB/BeurtenB,0)","v":0},null,"F"]
[21,null,"",null,null,"",null,46,null,"",null,null,"",null,71,null,"",null,null,"",null,null,null,null,null,"G"]
[22,null,"",null,null,"",null,47,null,"",null,null,"",null,72,null,"",null,null,"",null,null,null,null,null,"H"]
[23,null,"",null,null,"",null,48,null,"",null,null,"",null,73,null,"",null,null,""]
[24,null,"",null,null,"",null,49,null,"",null,null,"",null,74,null,"",null,null,""]
[25,null,"",null,null,"",null,50,null,"",null,null,"",null,75,null,"",null,null,""]

{"sheet":"Partij Uitslagen","index":1,"n_rows":15,"n_cols":23,"rows_kept":15,"cut":false,"hidden":false,"merged":[]}
["00:00:32",null,null,null,null,null,null,null,{"$f":"wedstrijd!Y$8","v":"week 1"}]
[null,{"$f":"TODAY()","v":"2019-12-05"},{"$f":"[2]wedstrijd!Z10","v":"1e Partij"},{"$f":"[2]wedstrijd!Z11","v":"2e Partij"},{"$f":"[2]wedstrijd!Z12","v":"3e Partij"},{"$f":"[2]wedstrijd!Z13","v":"4e Partij"},{"$f":"[2]wedstrijd!Z14","v":"5e Partij"},{"$f":"[2]wedstrijd!Z15","v":"6e Partij"},"Tot Gemid"]
[null,{"$f":"wedstrijd!Z20","v":"C"},null,null,null,null,null,null,{"$f":"IFERROR(AVERAGE(C3:H3),\"\")","v":""},null,null,null,null,null,null,null,null,null,null,null,null,null,"00:00:36"]
[null,{"$f":"wedstrijd!Z21","v":"D"},null,null,null,null,null,null,""]
[null,{"$f":"wedstrijd!Z22","v":"E"},null,null,null,null,null,null,""]
[null,{"$f":"wedstrijd!Z18","v":"A"},null,null,null,null,null,null,""]
[null,{"$f":"wedstrijd!Z19","v":"B"},null,null,null,null,null,null,""]
[null,{"$f":"wedstrijd!Z23","v":"F"},null,null,null,null,null,null,""]
[null,{"$f":"wedstrijd!Z17","v":0},null,null,null,null,null,null,""]
[null,{"$f":"wedstrijd!Z24","v":"G"},null,null,null,null,null,null,""]
[null,{"$f":"wedstrijd!Z25","v":"H"},null,null,null,null,null,null,""]
[]
[]
[]
[null,null,null,null,null,null,"Terug naar wedstrijd"]

{"sheet":"Cum Uitslagen","index":2,"n_rows":28,"n_cols":16,"rows_kept":28,"cut":false,"hidden":false,"merged":[]}
["00:00:34"]
[null,{"$f":"TODAY()","v":"2019-12-05"},{"$f":"[2]wedstrijd!$AA$4","v":"week 1"},{"$f":"[2]wedstrijd!$AA$5","v":"week 2"},{"$f":"[2]wedstrijd!$AA$6","v":"week 3"},{"$f":"[2]wedstrijd!$AA$7","v":"week 4"},{"$f":"[2]wedstrijd!$AA$8","v":"week 5"},{"$f":"[2]wedstrijd!$AA$9","v":"week 6"},{"$f":"[2]wedstrijd!$AA$10","v":"week 7"},{"$f":"[2]wedstrijd!$AA$11","v":"week 8"},{"$f":"[2]wedstrijd!$AA$12","v":"week 9"},{"$f":"[2]wedstrijd!$AA$13","v":"week 10"},{"$f":"[2]wedstrijd!$AA$14","v":"week 11"},{"$f":"[2]wedstrijd!$AA$15","v":"week 12"},{"$f":"[2]wedstrijd!$AA$16","v":"week 13"},"Totaal"]
[null,{"$f":"wedstrijd!Z20","v":"C"},0.79999999999999993,null,null,null,null,null,null,null,null,null,null,null,null,{"$f":"IFERROR(AVERAGE(C3:O3),\"\")","v":0.79999999999999993}]
[null,{"$f":"wedstrijd!Z21","v":"D"},0.69599999999999995,null,null,null,null,null,null,null,null,null,null,null,null,0.69599999999999995]
[null,{"$f":"wedstrijd!Z22","v":"E"},0.54400000000000004,null,null,null,null,null,null,null,null,null,null,null,null,0.54400000000000004]
[null,{"$f":"wedstrijd!Z18","v":"A"},0.65,null,null,null,null,null,null,null,null,null,null,null,null,0.65]
[null,{"$f":"wedstrijd!Z19","v":"B"},1.03,null,null,null,null,null,null,null,null,null,null,null,null,1.03]
[null,{"$f":"wedstrijd!Z23","v":"F"},0.84000000000000008,null,null,null,null,null,null,null,null,null,null,null,null,0.84000000000000008]
[null,{"$f":"wedstrijd!Z17","v":0},null,null,null,null,null,null,null,null,null,null,null,null,null,""]
[null,{"$f":"wedstrijd!Z24","v":"G"},0.624,null,null,null,null,null,null,null,null,null,null,null,null,0.624]
[null,{"$f":"wedstrijd!Z25","v":"H"},2.04,null,null,null,null,null,null,null,null,null,null,null,null,2.04]
[null,null,null,null,null,null,null,null,null,null,null,null,null,null,null,""]
[null,"1x per week cumuleren"]
[]
[]
[]
[]
[null,null,"Tot ","Spel","Te spelen"]
[null,null,"Gemidd","Factor","Punten"]
[null,{"$f":"wedstrijd!Z20","v":"C"},{"$f":"P3","v":0.79999999999999993},25,{"$f":"CEILING(C20*D20,1)","v":20}]
[null,{"$f":"wedstrijd!Z21","v":"D"},{"$f":"P4","v":0.69599999999999995},25,{"$f":"CEILING(C21*D21,1)","v":18}]
[null,{"$f":"wedstrijd!Z22","v":"E"},0.54400000000000004,25,14]
[null,{"$f":"wedstrijd!Z18","v":"A"},0.65,25,17]
[null,{"$f":"wedstrijd!Z19","v":"B"},1.03,25,26]
[null,{"$f":"wedstrijd!Z23","v":"F"},0.84000000000000008,25,21]
[null,{"$f":"wedstrijd!Z17","v":0},"",25,{"$error":"#VALUE!"}]
[null,{"$f":"wedstrijd!Z24","v":"G"},0.624,25,16]
[null,{"$f":"wedstrijd!Z25","v":"H"},2.04,25,51]

{"sheet":"score","index":3,"n_rows":86,"n_cols":31,"rows_kept":86,"cut":false,"hidden":false,"merged":[]}
[null,"wk1","wk2","wk3","wk4","wk5","wk6","wk7","wk8","wk9","wk10","wk11","wk12","wk13","Totaal",null,null,"wk1","wk2","wk3","wk4","wk5","wk6","wk7","wk8","wk9","wk10","wk11","wk12","wk13","Totaal"]
[{"$f":"wedstrijd!Z18","v":"A"},null,null,null,null,null,null,null,null,null,null,null,null,null,null,null,{"$f":"wedstrijd!Z18","v":"A"},{"$f":"B9","v":0},{"$f":"C9","v":0},0,0,0,0,0,0,0,0,0,0,0,{"$f":"SUM(R2:AD2)","v":0}]
["1e Partij",null,null,null,null,null,null,null,null,null,null,null,null,null,{"$f":"SUM(B3:N3)","v":0},null,{"$f":"wedstrijd!Z19","v":"B"},{"$f":"B19","v":0},{"$f":"C19","v":0},0,0,0,0,0,0,0,0,0,0,0,{"$f":"SUM(R3:AD3)","v":0}]
["2e Partij",null,null,null,null,null,null,null,null,null,null,null,null,null,{"$f":"SUM(B4:N4)","v":0},null,{"$f":"wedstrijd!Z20","v":"C"},{"$f":"B29","v":0},{"$f":"C29","v":0},0,0,0,0,0,0,0,0,0,0,0,0]
["3e Partij",null,null,null,null,null,null,null,null,null,null,null,null,null,0,null,{"$f":"wedstrijd!Z21","v":"D"},{"$f":"B39","v":0},{"$f":"C39","v":0},0,0,0,0,0,0,0,0,0,0,0,0]
["4e Partij",null,null,null,null,null,null,null,null,null,null,null,null,null,0,null,{"$f":"wedstrijd!Z22","v":"E"},{"$f":"B49","v":0},{"$f":"C49","v":0},0,0,0,0,0,0,0,0,0,0,0,0]
["5e Partij",null,null,null,null,null,null,null,null,null,null,null,null,null,0,null,{"$f":"wedstrijd!Z23","v":"F"},{"$f":"B59","v":0},{"$f":"C59","v":0},0,0,0,0,0,0,0,0,0,0,0,0]
["6e Partij",null,null,null,null,null,null,null,null,null,null,null,null,null,0,null,{"$f":"wedstrijd!Z24","v":"G"},{"$f":"B69","v":0},{"$f":"C69","v":0},0,0,0,0,0,0,0,0,0,0,0,0]
["Totaal",{"$f":"SUM(B3:B8)","v":0},{"$f":"SUM(C3:C8)","v":0},0,0,0,0,0,0,0,0,0,0,0,0,null,{"$f":"wedstrijd!Z25","v":"H"},{"$f":"B79","v":0},{"$f":"C79","v":0},0,0,0,0,0,0,0,0,0,0,0,0]
[]
[null,"wk1","wk2","wk3","wk4","wk5","wk6","wk7","wk8","wk9","wk10","wk11","wk12","wk13","Totaal",null,null,null,null,null,null,"CUMULATIEF  EINDSTAND"]
[{"$f":"wedstrijd!Z19","v":"B"},null,null,null,null,null,null,null,null,null,null,null,null,null,null,null,"Punten"]
["1e Partij",null,null,null,null,null,null,null,null,null,null,null,null,null,{"$f":"SUM(B13:N13)","v":0},null,3,"bij winst"]
["2e Partij",null,null,null,null,null,null,null,null,null,null,null,null,null,{"$f":"SUM(B14:N14)","v":0},null,1,"bij remise"]
["3e Partij",null,null,null,null,null,null,null,null,null,null,null,null,null,0,null,0,"bij verlies"]
["4e Partij",null,null,null,null,null,null,null,null,null,null,null,null,null,0]
["5e Partij",null,null,null,null,null,null,null,null,null,null,null,null,null,0]
["6e Partij",null,null,null,null,null,null,null,null,null,null,null,null,null,0]
["Totaal",{"$f":"SUM(B13:B18)","v":0},{"$f":"SUM(C13:C18)","v":0},0,0,0,0,0,0,0,0,0,0,0,0]
[]
[null,"wk1","wk2","wk3","wk4","wk5","wk6","wk7","wk8","wk9","wk10","wk11","wk12","wk13","Totaal"]
[{"$f":"wedstrijd!Z20","v":"C"}]
["1e Partij",null,null,null,null,null,null,null,null,null,null,null,null,null,{"$f":"SUM(B23:N23)","v":0}]
["2e Partij",null,null,null,null,null,null,null,null,null,null,null,null,null,{"$f":"SUM(B24:N24)","v":0}]
["3e Partij",null,null,null,null,null,null,null,null,null,null,null,null,null,0]
["4e Partij",null,null,null,null,null,null,null,null,null,null,null,null,null,0]
["5e Partij",null,null,null,null,null,null,null,null,null,null,null,null,null,0]
["6e Partij",null,null,null,null,null,null,null,null,null,null,null,null,null,0]
["Totaal",{"$f":"SUM(B23:B28)","v":0},{"$f":"COUNTIF(C23:C28,\"w\")","v":0},0,0,0,0,0,0,0,0,0,0,0,0]
[]
[null,"wk1","wk2","wk3","wk4","wk5","wk6","wk7","wk8","wk9","wk10","wk11","wk12","wk13","Totaal"]
[{"$f":"wedstrijd!Z21","v":"D"}]
["1e Partij",null,null,null,null,null,null,null,null,null,null,null,null,null,{"$f":"SUM(B33:N33)","v":0}]
["2e Partij",null,null,null,null,null,null,null,null,null,null,null,null,null,{"$f":"SUM(B34:N34)","v":0}]
["3e Partij",null,null,null,null,null,null,null,null,null,null,null,null,null,0]
["4e Partij",null,null,null,null,null,null,null,null,null,null,null,null,null,0]
["5e Partij",null,null,null,null,null,null,null,null,null,null,null,null,null,0]
["6e Partij",null,null,null,null,null,null,null,null,null,null,null,null,null,0]
["Totaal",{"$f":"SUM(B33:B38)","v":0},{"$f":"SUM(C33:C38)","v":0},0,0,0,0,0,0,0,0,0,0,0,0]
[]
[null,"wk1","wk2","wk3","wk4","wk5","wk6","wk7","wk8","wk9","wk10","wk11","wk12","wk13","Totaal"]
[{"$f":"wedstrijd!Z22","v":"E"}]
["1e Partij",null,null,null,null,null,null,null,null,null,null,null,null,null,{"$f":"SUM(B43:N43)","v":0}]
["2e Partij",null,null,null,null,null,null,null,null,null,null,null,null,null,{"$f":"SUM(B44:N44)","v":0}]
["3e Partij",null,null,null,null,null,null,null,null,null,null,null,null,null,0]
["4e Partij",null,null,null,null,null,null,null,null,null,null,null,null,null,0]
["5e Partij",null,null,null,null,null,null,null,null,null,null,null,null,null,0]
["6e Partij",null,null,null,null,null,null,null,null,null,null,null,null,null,0]
["Totaal",{"$f":"SUM(B43:B48)","v":0},{"$f":"SUM(C43:C48)","v":0},0,0,0,0,0,0,0,0,0,0,0,0]
[]
[null,"wk1","wk2","wk3","wk4","wk5","wk6","wk7","wk8","wk9","wk10","wk11","wk12","wk13","Totaal"]
[{"$f":"wedstrijd!Z23","v":"F"}]
["1e Partij",null,null,null,null,null,null,null,null,null,null,null,null,null,{"$f":"SUM(B53:N53)","v":0}]
["2e Partij",null,null,null,null,null,null,null,null,null,null,null,null,null,{"$f":"SUM(B54:N54)","v":0}]
["3e Partij",null,null,null,null,null,null,null,null,null,null,null,null,null,0]
["4e Partij",null,null,null,null,null,null,null,null,null,null,null,null,null,0]
["5e Partij",null,null,null,null,null,null,null,null,null,null,null,null,null,0]
["6e Partij",null,null,null,null,null,null,null,null,null,null,null,null,null,0]
["Totaal",{"$f":"SUM(B53:B58)","v":0},{"$f":"SUM(C53:C58)","v":0},0,0,0,0,0,0,0,0,0,0,0,0]
[]
[null,"wk1","wk2","wk3","wk4","wk5","wk6","wk7","wk8","wk9","wk10","wk11","wk12","wk13","Totaal"]
[{"$f":"wedstrijd!Z24","v":"G"}]
["1e Partij",null,null,null,null,null,null,null,null,null,null,null,null,null,{"$f":"SUM(B63:N63)","v":0}]
["2e Partij",null,null,null,null,null,null,null,null,null,null,null,null,null,{"$f":"SUM(B64:N64)","v":0}]
["3e Partij",null,null,null,null,null,null,null,null,null,null,null,null,null,0]
["4e Partij",null,null,null,null,null,null,null,null,null,null,null,null,null,0]
["5e Partij",null,null,null,null,null,null,null,null,null,null,null,null,null,0]
["6e Partij",null,null,null,null,null,null,null,null,null,null,null,null,null,0]
["Totaal",{"$f":"SUM(B63:B68)","v":0},{"$f":"SUM(C63:C68)","v":0},0,0,0,0,0,0,0,0,0,0,0,0]
[]
[null,"wk1","wk2","wk3","wk4","wk5","wk6","wk7","wk8","wk9","wk10","wk11","wk12","wk13","Totaal"]
[{"$f":"wedstrijd!Z25","v":"H"}]
["1e Partij",null,null,null,null,null,null,null,null,null,null,null,null,null,{"$f":"SUM(B73:N73)","v":0}]
["2e Partij",null,null,null,null,null,null,null,null,null,null,null,null,null,{"$f":"SUM(B74:N74)","v":0}]
["3e Partij",null,null,null,null,null,null,null,null,null,null,null,null,null,0]
["4e Partij",null,null,null,null,null,null,null,null,null,null,null,null,null,0]
["5e Partij",null,null,null,null,null,null,null,null,null,null,null,null,null,0]
["6e Partij",null,null,null,null,null,null,null,null,null,null,null,null,null,0]
["Totaal",{"$f":"SUM(B73:B78)","v":0},{"$f":"SUM(C73:C78)","v":0},0,0,0,0,0,0,0,0,0,0,0,0]
[]
[null,"wk1","wk2","wk3","wk4","wk5","wk6","wk7","wk8","wk9","wk10","wk11","wk12","wk13","Totaal"]
["X"]
["1e Partij",null,null,null,null,null,null,null,null,null,null,null,null,null,{"$f":"COUNTIF(B83:N83,\"w\")","v":0}]
["2e Partij",null,null,null,null,null,null,null,null,null,null,null,null,null,{"$f":"COUNTIF(B84:N84,\"w\")","v":0}]
["3e Partij",null,null,null,null,null,null,null,null,null,null,null,null,null,{"$f":"COUNTIF(B85:N85,\"w\")","v":0}]
["Totaal",{"$f":"COUNTIF(B83:B85,\"w\")","v":0},0,0,0,0,0,0,0,0,0,0,0,0,{"$f":"SUM(O83:O85)","v":0}]